bitfinex/quotes_ETHUSD_20250821
["timestamp","ask_amount","ask_price","bid_price","bid_amount"]
[1755765095210,42.38924105,4304.9,4304.3,0.001]
[1755765095406,42.09064105,4304.9,4304.3,0.4408]
[1755765095645,41.96204755,4304.9,4304.3,0.4408]
[1755765095843,42.09172512,4304.9,4304.8,0.3247]
[1755765096164,16.01672512,4304.9,4304.8,0.7645]
[1755765096810,15.35672512,4304.9,4304.8,0.7645]
[1755765097041,16.01672512,4304.9,4304.8,0.7645]
[1755765097239,15.35672512,4304.9,4304.8,0.7645]
[1755765097645,16.17202512,4304.9,4304.8,0.021]
[1755765098028,16.01672512,4304.9,4304.8,0.021]
[1755765098226,16.01703176,4304.9,4304.8,0.021]
[1755765098633,15.67091827,4304.9,4304.8,0.021]
[1755765098946,16.01889995,4304.9,4304.8,0.021]
[1755765099152,15.45546653,4304.9,4304.8,0.021]
[1755765099341,16.0188664,4304.9,4304.8,0.021]
[1755765100569,49.29474706,4304.9,4304.8,0.021]
[1755765100771,2.98301771,4304.8,4304.3,0.001]
[1755765100965,0.8184,4304.6,4304.3,0.001]
[1755765101270,34.7178664,4304.6,4304.3,0.001]
[1755765101663,34.7178664,4304.6,4304.5,0.2959]
[1755765102259,4.7178664,4304.6,4304.5,0.2959]
[1755765102775,4.83363044,4304.6,4304.5,0.2959]
[1755765102954,4.83363044,4304.6,4304.5,0.7408]
[1755765103482,8.75863044,4304.6,4304.5,0.7408]
[1755765103648,4.83363044,4304.6,4304.5,0.7408]
[1755765103839,4.0578664,4304.6,4304.5,0.7408]
[1755765104046,8.101379,4304.6,4304.5,0.7408]
[1755765104587,8.101379,4304.6,4304.5,0.2959]
[1755765104787,8.29887121,4304.6,4304.5,0.2959]
[1755765105082,8.7448833,4304.6,4304.5,0.001]
[1755765105372,8.4289833,4304.6,4304.5,0.2959]
[1755765105977,9.0889833,4304.6,4304.5,0.2959]
[1755765106172,9.0889833,4304.6,4304.5,0.001]
[1755765106672,42.15627952,4304.6,4304.5,0.001]
[1755765107077,5.98315019,4304.5,4304.3,0.001]
[1755765107261,11.25232853,4304.4,4304.3,0.001]
[1755765107464,5.98342007,4304.0,4303.9,0.001]
[1755765107678,43.39779077,4304.0,4303.9,0.001]
[1755765107877,43.97621835,4304.0,4303.9,0.001]
[1755765108080,5.98347405,4303.9,4303.6,0.001]
[1755765108286,37.55483308,4303.9,4303.6,0.001]
[1755765108589,38.1134988,4303.9,4303.6,0.001]
[1755765108947,8.1134988,4303.9,4303.6,0.001]
[1755765109147,38.1134988,4303.9,4303.6,0.001]
[1755765109747,5.98358203,4303.7,4303.6,0.001]
[1755765109943,11.61000678,4303.7,4303.6,0.001]
[1755765110146,2.98369001,4303.5,4302.8,0.02]
[1755765110373,43.27126541,4303.5,4302.8,0.02]
[1755765110559,43.69952965,4303.5,4302.8,0.02]
[1755765111182,43.69935105,4303.5,4302.8,0.02]
[1755765111380,42.0382004,4303.5,4302.8,0.02]
[1755765111772,43.69935105,4303.5,4302.8,0.02]
[1755765112363,42.0382004,4303.5,4302.8,0.02]
[1755765113268,52.5232004,4303.5,4302.9,0.001]
[1755765113786,35.36091039,4303.5,4302.9,0.001]
[1755765113954,38.95856406,4303.5,4302.9,0.001]
[1755765114154,38.957812,4303.5,4302.9,0.001]
[1755765114674,41.28150201,4303.5,4302.9,0.001]
[1755765114878,52.55564834,4303.5,4302.9,0.001]
[1755765115762,59.9356154,4303.5,4302.9,0.001]
[1755765116158,29.9356154,4303.5,4302.9,0.001]
[1755765116597,59.9356154,4303.5,4302.9,0.001]
[1755765117095,55.66400627,4303.5,4302.9,0.001]
[1755765117255,59.93534441,4303.5,4302.9,0.001]
[1755765117454,59.93526205,4303.5,4302.9,0.001]
[1755765117992,60.02851405,4303.5,4302.9,0.001]
[1755765118163,44.87574699,4303.5,4302.9,0.001]
[1755765118368,48.70849499,4303.5,4302.9,0.001]
[1755765118580,48.80174099,4303.5,4302.9,0.001]
[1755765118775,44.87574099,4303.5,4302.9,0.001]
[1755765118979,48.15849466,4303.5,4302.9,0.001]
[1755765119179,41.15555865,4303.5,4303.4,0.2959]
[1755765119490,45.08155865,4303.5,4303.4,0.7408]
[1755765119786,45.08155865,4303.5,4303.4,0.2959]
[1755765119988,45.74155865,4303.5,4303.4,0.2959]
[1755765120301,41.15551033,4303.5,4303.4,0.7408]
[1755765120500,45.08151033,4303.5,4303.4,0.7408]
[1755765120726,8.15551033,4303.5,4303.4,0.7408]
[1755765120936,0.21579516,4303.5,4303.4,0.7408]
[1755765121234,0.34725245,4303.9,4303.4,0.7408]
[1755765121527,3.926,4303.8,4303.5,0.4449]
[1755765121729,3.0,4303.7,4303.5,0.4449]
[1755765122037,6.926,4303.6,4303.5,0.4449]
[1755765122323,6.926,4303.6,4303.5,0.7398]
[1755765122896,7.586,4303.6,4303.5,0.7398]
[1755765123101,3.925,4303.6,4303.5,0.7398]
[1755765127606,3.9242,4303.6,4303.5,0.7398]
[1755765128426,0.002,4303.9,4303.5,0.7398]
[1755765128730,0.002,4303.9,4303.6,0.4449]
[1755765128731,3.925,4303.8,4303.6,0.4449]
[1755765128929,3.925,4303.8,4303.7,0.2949]
[1755765129095,3.925,4303.8,4303.7,0.7398]
[1755765130842,0.002,4303.9,4303.7,0.7398]
[1755765131047,3.929,4303.9,4303.8,0.45793528]
[1755765131210,3.929,4303.9,4303.8,0.76123528]
[1755765131547,3.929,4303.9,4303.8,0.738]
[1755765131744,0.002,4303.9,4303.8,0.738]
[1755765131910,0.002,4303.9,4303.8,0.8816687]
[1755765132116,0.002,4303.9,4303.8,0.90490398]
[1755765132427,0.002,4303.9,4303.8,1.07604594]
[1755765132810,0.002,4303.9,4303.8,1.85204594]
[1755765133845,0.002,4303.9,4303.8,1.82881066]
[1755765134550,0.002,4303.9,4303.8,1.16881066]
[1755765134734,0.002,4303.9,4303.8,0.8816687]
[1755765135045,0.002,4303.9,4303.8,0.738]
[1755765135649,3.931,4303.9,4303.8,0.738]
[1755765136014,3.931,4303.9,4303.8,0.3033]
[1755765137815,3.931,4303.9,4303.4,0.4357]
[1755765138015,3.931,4303.9,4303.8,0.3033]
[1755765138514,3.931,4303.9,4303.8,0.738]
[1755765139614,3.931,4303.9,4303.8,0.3033]
[1755765144242,3.931,4303.9,4303.8,0.738]
[1755765144446,0.002,4303.9,4303.8,0.738]
[1755765144945,0.002,4303.9,4303.8,0.85537]
[1755765150684,0.002,4303.9,4303.8,0.97137]
[1755765151492,0.0012,4303.9,4303.8,0.97137]
[1755765154453,0.0012,4303.9,4303.8,0.965109]
[1755765155389,0.0012,4303.9,4303.8,7.888109]
[1755765155594,0.0012,4303.9,4303.8,8.548109]
[1755765158893,0.0012,4303.9,4303.8,4.625109]
[1755765159163,0.0012,4303.9,4303.8,8.548109]
[1755765160000,0.0012,4303.9,4303.8,7.888109]
[1755765160491,0.0012,4303.9,4303.8,3.965109]
[1755765160696,0.0012,4303.9,4303.8,4.337409]
[1755765160899,0.0012,4303.9,4303.8,4.04037]
[1755765161408,0.7498,4303.9,4303.7,0.4357]
[1755765161888,0.4619,4303.8,4303.7,0.4357]
[1755765162206,0.7486,4303.8,4303.7,0.4357]
[1755765163101,0.7486,4303.8,4303.6,0.001]
[1755765163311,0.4619,4303.7,4303.6,0.001]
[1755765163477,0.7486,4303.7,4303.6,0.4367]
[1755765165109,0.7486,4303.7,4303.6,0.001]
[1755765167712,0.2867,4303.7,4303.6,0.001]
[1755765174679,0.7486,4303.7,4303.6,0.001]
[1755765175116,0.7478,4303.7,4303.6,0.001]
[1755765176106,0.2859,4303.7,4303.6,0.001]
[1755765176640,0.7478,4303.7,4303.6,0.001]
[1755765178610,2.5358,4303.7,4303.6,0.001]
[1755765181749,2.0739,4303.7,4303.6,0.001]
[1755765182337,2.5358,4303.7,4303.6,0.001]
[1755765185228,0.002,4303.8,4303.6,0.2924]
[1755765185452,0.002,4303.8,4303.7,0.02323582]
[1755765185614,0.002,4303.8,4303.7,0.76763582]
[1755765185820,0.002,4303.8,4303.7,0.77112982]
[1755765186231,0.002,4303.8,4303.7,0.747894]
[1755765186447,0.002,4303.8,4303.7,0.77112982]
[1755765186758,0.002,4303.8,4303.7,0.86429282]
[1755765187122,0.002,4303.8,4303.7,0.841057]
[1755765187432,0.002,4303.8,4303.7,0.86429282]
[1755765187815,0.002,4303.8,4303.7,0.841057]
[1755765190454,0.002,4303.8,4303.7,0.096657]
[1755765190642,0.7506,4303.8,4303.7,0.003494]
[1755765191051,0.2887,4303.8,4303.7,0.003494]
[1755765192174,0.7279,4303.8,4303.7,0.003494]
[1755765195840,0.2887,4303.8,4303.7,0.003494]
[1755765196045,4.2212,4303.8,4303.7,0.003494]
[1755765197475,4.6604,4303.8,4303.7,0.003494]
[1755765198865,0.0012,4303.8,4303.7,0.746294]
[1755765199279,0.0012,4303.8,4303.7,0.839456]
[1755765201354,0.0012,4303.8,4303.7,0.86269182]
[1755765201763,0.0012,4303.8,4303.7,1.615456]
[1755765202056,0.0012,4303.8,4303.7,4.9560016]
[1755765204154,0.0012,4303.8,4303.7,4.2960016]
[1755765205296,0.0012,4303.8,4303.7,4.1800016]
[1755765206718,0.0012,4303.8,4303.7,4.20323742]
[1755765208693,0.0012,4303.8,4303.7,4.1800016]
[1755765210622,0.2974,4303.8,4303.7,0.4372016]
[1755765211228,0.2974,4303.8,4303.7,0.096656]
[1755765214548,0.7366,4303.8,4303.7,0.096656]
[1755765215610,0.2974,4303.8,4303.7,0.096656]
[1755765220048,0.0012,4303.8,4303.7,0.096656]
[1755765220752,0.2974,4303.8,4303.7,0.096656]
[1755765221421,0.2974,4303.8,4303.7,0.411356]
[1755765221422,0.0012,4303.8,4303.7,0.411356]
[1755765221616,0.0012,4303.8,4303.7,0.840456]
[1755765221923,0.0012,4303.8,4303.7,1.2363016]
[1755765222650,0.0004,4303.8,4303.7,1.2363016]
[1755765223652,0.0004,4303.8,4303.7,6.70653742]
[1755765223954,0.0004,4303.8,4303.7,6.7993016]
[1755765224922,0.0004,4303.8,4303.7,9.9453016]
[1755765227427,0.0004,4303.8,4303.7,14.7953016]
[1755765232256,0.0004,4303.8,4303.7,10.8733016]
[1755765232452,0.0004,4303.8,4303.7,14.7943016]
[1755765234664,0.0004,4303.8,4303.7,10.8733016]
[1755765234961,0.0004,4303.8,4303.7,14.7943016]
[1755765235661,0.0004,4303.8,4303.7,19.56988363]
[1755765235842,0.0004,4303.8,4303.7,17.11788363]
[1755765236049,0.0004,4303.8,4303.7,17.23388363]
[1755765236569,0.0004,4303.8,4303.7,19.68588363]
[1755765236772,0.002,4304.1,4304.0,5.98342007]
[1755765236985,0.002,4304.1,4304.0,12.5812597]
[1755765237266,0.002,4304.1,4304.0,13.1263597]
[1755765237467,0.002,4304.1,4304.0,13.2229647]
[1755765239044,0.002,4304.1,4304.0,9.3019647]
[1755765239271,0.002,4304.1,4304.0,13.2229647]
[1755765240249,0.002,4304.1,4304.0,19.8633647]
[1755765241177,0.002,4304.1,4304.0,14.65784463]
[1755765241472,0.002,4304.1,4304.0,9.76314463]
[1755765241773,0.002,4304.1,4304.0,0.246605]
[1755765241774,0.4424,4304.1,4304.0,0.246605]
[1755765242072,0.4424,4304.1,4304.0,4.047113]
[1755765242379,0.0064,4304.1,4304.0,4.047113]
[1755765242672,0.4424,4304.1,4304.0,4.047113]
[1755765246344,0.4424,4304.1,4304.0,0.127113]
[1755765246545,0.4416,4304.1,4304.0,4.047113]
[1755765247874,0.0056,4304.1,4304.0,4.047113]
[1755765248242,0.0012,4304.1,4304.0,9.15264783]
[1755765251099,0.0012,4304.1,4304.0,11.4760679]
[1755765251596,0.0012,4304.1,4304.0,15.6644679]
[1755765253267,0.0012,4304.1,4304.0,18.1164679]
[1755765254080,0.0012,4304.1,4304.0,18.3494679]
[1755765254281,0.002,4304.6,4304.3,0.893]
[1755765254468,0.002,4304.6,4304.3,17.34517221]
[1755765254706,0.002,4304.6,4304.5,5.66815019]
[1755765254893,0.002,4304.6,4304.5,14.68155019]
[1755765255093,0.002,4304.6,4304.5,15.14785019]
[1755765255295,0.002,4304.6,4304.5,10.99485019]
[1755765255493,0.002,4304.6,4304.5,17.1656462]
[1755765255805,0.002,4304.6,4304.5,17.2587352]
[1755765256103,0.002,4304.6,4304.5,17.42951796]
[1755765256604,0.002,4304.6,4304.5,14.97751796]
[1755765256812,0.002,4304.6,4304.5,8.07436777]
[1755765256970,0.002,4304.6,4304.5,6.27727176]
[1755765257173,0.2909,4304.6,4304.5,5.97087176]
[1755765257499,0.7293,4304.6,4304.5,5.97087176]
[1755765257703,0.7293,4304.6,4304.5,2.05087176]
[1755765257901,0.7293,4304.6,4304.5,5.97187176]
[1755765258103,0.002,4304.6,4304.5,10.54705894]
[1755765258603,0.002,4304.6,4304.5,10.24065894]
[1755765258604,0.2909,4304.6,4304.5,10.24065894]
[1755765258799,0.7293,4304.6,4304.5,5.65965894]
[1755765259001,0.7293,4304.6,4304.5,9.58165894]
[1755765259383,0.2909,4304.6,4304.5,9.58165894]
[1755765259708,0.002,4304.6,4304.5,10.24165894]
[1755765260405,0.002,4304.6,4304.5,10.35765894]
[1755765260606,0.2909,4304.6,4304.5,10.35765894]
[1755765261903,0.2909,4304.6,4304.5,10.35665894]
[1755765262202,0.002,4304.6,4304.5,10.35665894]
[1755765262568,0.2909,4304.6,4304.5,10.35665894]
[1755765263395,0.002,4304.6,4304.5,10.35665894]
[1755765264011,0.7293,4304.6,4304.5,10.35565894]
[1755765264207,0.2909,4304.6,4304.5,10.35565894]
[1755765264519,0.002,4304.6,4304.5,10.35565894]
[1755765266508,0.002,4304.6,4304.5,10.66205894]
[1755765267516,0.002,4304.6,4304.5,13.45150913]
[1755765268917,0.002,4304.6,4304.5,17.63990913]
[1755765270317,0.0012,4304.6,4304.5,17.63990913]
[1755765272095,0.0012,4304.6,4304.5,10.62405894]
[1755765272287,0.2901,4304.6,4304.5,13.88305894]
[1755765272695,0.2901,4304.6,4304.5,14.54305894]
[1755765273013,0.0012,4304.6,4304.5,14.84945894]
[1755765273392,0.0012,4304.6,4304.5,15.31575894]
[1755765274210,0.0012,4304.6,4304.5,17.63890913]
[1755765275021,0.0012,4304.6,4304.5,15.31575894]
[1755765275419,0.0012,4304.6,4304.5,17.76775894]
[1755765275602,0.0012,4304.6,4304.5,14.84945894]
[1755765276814,0.2901,4304.6,4304.5,10.62405894]
[1755765277014,0.2901,4304.6,4304.5,14.54305894]
[1755765277414,0.0012,4304.6,4304.5,14.84945894]
[1755765278632,0.0012,4304.6,4304.5,14.54305894]
[1755765279330,0.2901,4304.6,4304.5,10.62405894]
[1755765279530,0.2901,4304.6,4304.5,14.54405894]
[1755765280929,0.2901,4304.6,4304.5,10.62505894]
[1755765281136,0.0012,4304.6,4304.5,14.54405894]
[1755765281523,0.2992,4304.6,4304.5,14.54405894]
[1755765283038,0.0012,4304.6,4304.5,14.83755894]
[1755765283838,0.0012,4304.6,4304.5,17.60980913]
[1755765284960,0.0012,4304.6,4304.5,20.06180913]
[1755765285111,0.002,4304.7,4304.5,20.06180913]
[1755765285112,0.002,4304.7,4304.6,8.43509622]
[1755765285314,0.00028987,4304.7,4304.6,11.53983585]
[1755765286539,0.4618,4306.7,4305.4,5.98266456]
[1755765286841,0.4618,4306.7,4305.4,16.16956456]
[1755765287041,0.4638,4306.4,4305.4,16.28556456]
[1755765287355,0.4638,4306.4,4305.4,16.82774656]
[1755765287558,0.4638,4306.4,4305.4,18.98799498]
[1755765287842,0.4638,4306.4,4305.4,18.65198065]
[1755765288755,0.4618,4306.1,4305.4,14.73298065]
[1755765288958,0.3,4305.5,4305.4,18.35848065]
[1755765289269,0.3,4305.5,4305.4,15.92273042]
[1755765291371,0.3,4305.5,4305.4,12.00373042]
[1755765291535,0.7618,4305.5,4305.4,12.00373042]
[1755765291736,0.7618,4305.5,4305.4,5.913082]
[1755765291942,0.7618,4305.5,4305.4,8.913082]
[1755765292446,0.7618,4305.5,4305.4,5.913082]
[1755765292673,0.7618,4305.5,4305.4,8.913082]
[1755765293659,0.7618,4305.5,4305.4,4.879082]
[1755765293871,0.7618,4305.5,4305.4,0.093082]
[1755765294037,0.761,4305.5,4305.4,3.918]
[1755765295365,0.761,4305.5,4305.3,3.918]
[1755765295565,0.4618,4305.4,4305.3,3.918]
[1755765295760,0.7598,4305.4,4304.9,0.698454]
[1755765295928,0.298,4305.4,4305.0,3.918]
[1755765296143,0.4618,4305.3,4305.0,3.918]
[1755765296344,0.298,4305.1,4305.0,3.918]
[1755765296776,0.7598,4305.1,4305.0,3.918]
[1755765300277,0.7598,4305.1,4304.7,0.69848]
[1755765300444,0.4618,4305.0,4304.5,0.001]
[1755765300648,0.298,4304.6,4304.5,3.92]
[1755765300846,0.7598,4304.6,4304.5,3.92]
[1755765301074,0.7598,4304.6,4304.5,0.001]
[1755765305795,1.4198,4304.6,4304.5,0.001]
[1755765317314,8.3408,4304.6,4304.5,0.001]
[1755765317740,8.34,4304.6,4304.5,0.001]
[1755765318709,8.3205,4304.6,4304.5,0.001]
[1755765318908,40.64359622,4304.6,4304.5,0.001]
[1755765319133,40.93335921,4304.6,4304.5,0.001]
[1755765319872,40.93335921,4304.6,4303.8,0.02]
[1755765319873,33.0,4304.5,4303.8,0.00431013]
[1755765320140,6.29237405,4303.9,4303.8,0.00431013]
[1755765320314,43.05225897,4303.9,4303.8,0.00431013]
[1755765320635,44.02050569,4303.9,4303.8,0.00431013]
[1755765320803,54.50450569,4303.9,4303.8,0.00431013]
[1755765321220,54.67649841,4303.9,4303.8,0.00431013]
[1755765322122,53.93699841,4303.9,4303.8,0.00431013]
[1755765322368,54.67649841,4303.9,4303.8,0.00431013]
[1755765322724,54.54790999,4303.9,4303.8,0.00431013]
[1755765322923,54.67646399,4303.9,4303.8,0.00431013]
[1755765323849,44.19246399,4303.9,4303.8,0.00431013]
[1755765324236,54.67646399,4303.9,4303.8,0.00431013]
[1755765324952,6.52117476,4303.8,4303.6,0.001]
[1755765325132,42.93233253,4303.7,4303.6,0.001]
[1755765325329,43.65269552,4303.7,4303.6,0.001]
[1755765325862,43.43845268,4303.7,4303.6,0.001]
[1755765326028,43.65281794,4303.7,4303.6,0.001]
[1755765329265,47.28505495,4303.7,4303.6,0.001]
[1755765330073,17.28505495,4303.7,4303.6,0.001]
[1755765330465,47.28505495,4303.7,4303.6,0.001]
[1755765331476,38.73687292,4303.7,4303.6,0.001]
[1755765331784,8.42797292,4303.7,4303.6,0.741]
[1755765331978,8.42797292,4303.7,4303.6,0.001]
[1755765331979,45.1650621,4303.7,4303.6,0.001]
[1755765332146,46.7503938,4303.7,4303.6,0.001]
[1755765332351,49.36373882,4303.7,4303.6,0.001]
[1755765332551,47.04015679,4303.7,4303.6,0.001]
[1755765332781,47.04215679,4303.7,4303.6,0.001]
[1755765333481,42.3977938,4303.7,4303.6,0.001]
[1755765333788,46.3217938,4303.7,4303.6,0.001]
[1755765335080,45.9794902,4303.7,4303.6,0.001]
[1755765335283,46.3232638,4303.7,4303.6,0.001]
[1755765335488,46.0143638,4303.7,4303.6,0.001]
[1755765335797,42.39963864,4303.7,4303.6,0.001]
[1755765335958,46.32263864,4303.7,4303.6,0.001]
[1755765336551,49.07682067,4303.7,4303.6,0.001]
[1755765336985,46.75323864,4303.7,4303.6,0.001]
[1755765337189,48.64622067,4303.7,4303.6,0.001]
[1755765337354,49.07682067,4303.7,4303.6,0.001]
[1755765337554,19.07682067,4303.7,4303.6,0.001]
[1755765337788,16.75323864,4303.7,4303.6,0.001]
[1755765337987,48.64622067,4303.7,4303.6,0.001]
[1755765338398,49.07693839,4303.7,4303.6,0.001]
[1755765338579,19.07693839,4303.7,4303.6,0.001]
[1755765339101,49.36670138,4303.7,4303.6,0.001]
[1755765340278,47.04311935,4303.7,4303.6,0.001]
[1755765340484,46.61251935,4303.7,4303.6,0.001]
[1755765340880,46.01385636,4303.7,4303.6,0.3015]
[1755765341369,48.33743839,4303.7,4303.6,0.3015]
[1755765341704,46.01305636,4303.7,4303.6,0.3015]
[1755765342306,46.01305636,4303.7,4303.6,0.001]
[1755765342798,48.51253839,4303.7,4303.6,0.001]
[1755765343006,49.23030138,4303.7,4303.6,0.001]
[1755765343469,6.27339901,4303.6,4303.5,0.001]
[1755765343668,7.50575537,4303.6,4303.5,0.001]
[1755765343996,37.93125537,4303.6,4303.5,0.001]
[1755765344302,37.71613498,4303.6,4303.5,0.001]
[1755765344475,37.93289818,4303.6,4303.5,0.001]
[1755765344675,38.02613818,4303.6,4303.5,0.001]
[1755765344908,38.02617136,4303.6,4303.5,0.001]
[1755765345316,5.98369001,4303.5,4303.1,0.001]
[1755765345614,41.85498535,4303.5,4303.1,0.001]
[1755765346802,11.85498535,4303.5,4303.1,0.001]
[1755765347105,41.43188535,4303.5,4303.1,0.001]
[1755765347502,37.22074016,4303.5,4303.1,0.001]
[1755765347673,41.14274016,4303.5,4303.1,0.001]
[1755765348113,34.71615015,4303.5,4303.4,0.3007]
[1755765348408,37.97915015,4303.5,4303.4,0.7303]
[1755765348772,38.63915015,4303.5,4303.4,0.7303]
[1755765348976,38.63915015,4303.5,4303.1,0.001]
[1755765348977,33.66,4303.4,4303.1,0.001]
[1755765349276,35.02945015,4303.4,4303.1,0.001]
[1755765349781,34.71615015,4303.4,4303.3,0.3007]
[1755765350519,38.42322052,4303.4,4303.3,0.7303]
[1755765350686,1.05646366,4303.4,4303.3,0.7303]
[1755765350884,0.56173196,4303.4,4303.3,0.7303]
[1755765351190,4.35517277,4303.4,4303.3,0.7303]
[1755765351512,1.05708122,4303.4,4303.3,0.7303]
[1755765351712,4.48534952,4303.4,4303.3,0.7303]
[1755765351917,8.64008122,4303.4,4303.3,0.7303]
[1755765352433,8.51371789,4303.4,4303.3,0.7303]
[1755765352588,8.01557656,4303.4,4303.3,0.7303]
[1755765353190,8.64316069,4303.4,4303.3,0.7303]
[1755765353389,8.51350969,4303.4,4303.3,0.7303]
[1755765353621,8.01557656,4303.4,4303.3,0.7303]
[1755765353829,8.2310788,4303.4,4303.3,0.7303]
[1755765354234,8.2300744,4303.4,4303.3,0.7303]
[1755765354534,8.23006527,4303.4,4303.3,0.7303]
[1755765354933,4.09203718,4303.4,4303.3,0.7303]
[1755765355107,8.01403718,4303.4,4303.3,0.7303]
[1755765355820,8.01403718,4303.4,4303.3,0.3007]
[1755765356134,40.05115327,4303.4,4303.3,0.001]
[1755765356335,42.37489728,4303.4,4303.3,0.001]
[1755765357002,42.3747589,4303.4,4303.3,0.001]
[1755765357393,42.2347589,4303.4,4303.3,0.001]
[1755765358907,12.2347589,4303.4,4303.3,0.001]
[1755765359426,42.2347589,4303.4,4303.3,0.001]
[1755765359992,42.234742,4303.4,4303.3,0.001]
[1755765360736,42.234742,4303.4,4303.1,0.001]
[1755765360737,6.273561,4303.3,4303.1,0.001]
[1755765360936,38.09677065,4303.3,4303.1,0.001]
[1755765362065,38.0968007,4303.3,4303.1,0.001]
[1755765362354,38.09680971,4303.3,4303.1,0.001]
[1755765362655,38.096765,4303.3,4303.1,0.001]
[1755765363444,38.190016,4303.3,4303.1,0.001]
[1755765363749,45.290016,4303.3,4303.1,0.001]
[1755765365031,35.98385201,4303.2,4303.1,0.001]
[1755765365234,49.11878641,4303.2,4303.1,0.001]
[1755765366726,2.98396002,4303.0,4302.9,0.001]
[1755765366927,41.27873143,4303.0,4302.9,0.001]
[1755765367139,11.72993143,4303.0,4302.9,0.001]
[1755765367328,41.72993143,4303.0,4302.9,0.001]
[1755765369669,52.50569442,4303.0,4302.9,0.001]
[1755765371142,52.2896603,4303.0,4302.9,0.001]
[1755765371347,52.50484316,4303.0,4302.9,0.001]
[1755765371547,59.60484316,4303.0,4302.9,0.001]
[1755765371748,59.60477214,4303.0,4302.9,0.001]
[1755765372083,59.80477214,4303.0,4302.9,0.001]
[1755765374272,35.98401403,4302.9,4302.8,0.021]
[1755765374579,39.86037952,4302.9,4302.8,0.021]
[1755765374747,46.86037952,4302.9,4302.8,0.021]
[1755765375989,43.0499487,4302.1,4302.0,0.001]
[1755765376150,5.98455426,4301.9,4301.8,0.02]
[1755765376363,47.0285325,4301.9,4301.8,0.02]
[1755765376782,47.4726325,4301.9,4301.8,0.02]
[1755765377262,47.47159823,4301.9,4301.8,0.02]
[1755765379085,43.54859823,4301.9,4301.8,0.02]
[1755765379395,46.73239823,4301.9,4301.8,0.02]
[1755765379576,47.02849823,4301.9,4301.8,0.02]
[1755765379994,42.80839823,4301.9,4301.8,0.02]
[1755765380187,46.73239823,4301.9,4301.8,0.3298]
[1755765380383,0.66,4301.4,4300.8,0.02]
[1755765380576,3.66,4301.1,4301.0,0.4718]
[1755765380777,38.63989247,4301.1,4301.0,0.7816]
[1755765381302,38.51102279,4301.1,4301.0,0.7816]
[1755765381499,38.51102279,4301.1,4301.0,0.3098]
[1755765381500,40.96488171,4301.1,4301.0,0.3098]
[1755765381673,40.96488171,4301.1,4301.0,0.7816]
[1755765383102,40.96488171,4301.1,4301.0,0.3098]
[1755765383793,41.07854609,4301.1,4301.0,0.3098]
[1755765384501,38.75355946,4301.1,4301.0,0.3098]
[1755765384701,41.07854609,4301.1,4301.0,0.3098]
[1755765386609,41.07937965,4301.1,4301.0,0.3098]
[1755765387509,38.75439302,4301.1,4301.0,0.3098]
[1755765387700,41.07937965,4301.1,4301.0,0.3098]
[1755765389113,41.07857965,4301.1,4301.0,0.3098]
[1755765389276,34.82959302,4301.1,4301.0,0.3098]
[1755765389481,38.53839342,4301.1,4301.0,0.7816]
[1755765389701,37.87844212,4301.1,4301.0,0.7816]
[1755765389909,38.75397432,4301.1,4301.0,0.7816]
[1755765390114,1.17077432,4301.1,4301.0,0.7816]
[1755765390308,4.46822493,4301.1,4301.0,0.7816]
[1755765390484,4.46825225,4301.1,4301.0,0.7816]
[1755765390815,5.12825225,4301.1,4301.0,0.7816]
[1755765391013,8.12825225,4301.1,4301.0,0.7816]
[1755765393220,8.25756397,4301.1,4301.0,0.7816]
[1755765393426,8.12825225,4301.1,4301.0,0.7816]
[1755765394287,4.21993999,4301.1,4301.0,0.7816]
[1755765394492,6.924,4301.1,4301.0,0.7816]
[1755765394797,3.924,4301.1,4301.0,0.7816]
[1755765395520,4.584,4301.1,4301.0,0.7816]
[1755765395721,5.01523006,4301.1,4301.0,0.3098]
[1755765396218,5.01523006,4301.1,4301.0,0.7816]
[1755765397019,8.01423006,4301.1,4301.0,0.7816]
[1755765397389,8.01423006,4301.1,4301.0,0.7826]
[1755765397901,8.01423006,4301.1,4301.0,0.3108]
[1755765398095,8.01423006,4301.1,4301.0,0.7826]
[1755765398516,5.01423006,4301.1,4301.0,0.7826]
[1755765398716,5.01423006,4301.1,4301.0,0.3108]
[1755765398919,5.01442465,4301.1,4301.0,0.3108]
[1755765399525,5.01446484,4301.1,4301.0,0.3108]
[1755765401631,5.01446484,4301.1,4301.0,0.7463]
[1755765401941,4.79873242,4301.1,4301.0,0.7463]
[1755765402147,5.01450557,4301.1,4301.0,0.3108]
[1755765403216,5.01450557,4301.1,4301.0,0.7463]
[1755765403833,8.01450557,4301.1,4301.0,0.7463]
[1755765404038,8.01455874,4301.1,4301.0,0.7463]
[1755765404341,8.01455874,4301.1,4301.0,0.3108]
[1755765405537,8.01455874,4301.1,4301.0,0.7463]
[1755765406110,8.01455874,4301.1,4301.0,0.3108]
[1755765406924,5.01455874,4301.1,4301.0,0.7463]
[1755765407126,4.583,4301.1,4301.0,0.7463]
[1755765407445,1.789,4301.3,4301.0,0.7463]
[1755765407748,6.923,4301.2,4301.1,0.4355]
[1755765407920,3.0,4301.1,4301.0,0.001]
[1755765408124,3.66,4301.1,4301.0,0.001]
[1755765408326,0.66,4301.1,4301.0,0.3079]
[1755765408640,0.9688,4301.1,4301.0,0.001]
[1755765408808,1.18455318,4301.1,4301.0,0.001]
[1755765409245,1.4003052,4301.1,4301.0,0.001]
[1755765409541,1.0915052,4301.1,4301.0,0.001]
[1755765409756,5.0145052,4301.1,4301.0,0.3079]